[Event "23rd Alekhine Master 2019"]
[Site "Voronezh"]
[Date "2019.06.12"]
[Round "1.2"]
[White "Tsydypov, Zhamsaran"]
[Black "Cherednichenko, Dmitrij"]
[Result "1-0"]
[ECO "C10"]
[WhiteElo "2573"]
[BlackElo "2304"]
[Annotator "ChessBase"]
[PlyCount "93"]
[EventDate "2019.06.12"]
[EventType "swiss"]
[EventCountry "RUS"]
[SourceTitle "playchess.com"]
[Source "ChessBase"]
[SourceQuality "1"]
[TimeControl "40/5400+30:1800+30"]

1. e4 {[%emt 0:00:45]} e6 {[%emt 0:02:36]} 2. d4 {[%emt 0:00:08]} d5 {[%emt 0:00:07]} 3. Nc3 {[%emt 0:00:04]} dxe4 {[%emt 0:00:54]} 4. Nxe4 {[%emt 0:00:10]} Nd7 {[%emt 0:00:04]} 5. Nf3 {[%emt 0:00:55]} Ngf6 {[%emt 0:00:34]} 6. Nxf6+ {[%emt 0:00:45]} Nxf6 {[%emt 0:00:09]} 7. Be3 {[%emt 0:00:27]} Be7 {[%emt 0:03:55]} 8. Bd3 {[%emt 0:01:38]} O-O {[%emt 0:01:32]} 9. Qe2 {[%emt 0:00:20]} b6 {[%emt 0:05:02]} 10. O-O-O {[%emt 0:04:48]} Bb7 {[%emt 0:06:58]} 11. Ne5 {[%emt 0:00:37]} Nd5 {[%emt 0:13:46]} 12. Bd2 {[%emt 0:02:20]} Nb4 {[%emt 0:18:27]} 13. Bc4 {[%emt 0:03:06]} Bd5 {[%emt 0:17:10]} 14. Bxd5 {[%emt 0:00:35]} Qxd5 {[%emt 0:02:44]} 15. c4 {[%emt 0:00:56]} Qd6 {[%emt 0:03:30]} 16. Bf4 {[%emt 0:08:32]} Nc6 {[%emt 0:01:41]} 17. Ng6 {[%emt 0:06:09]} Bg5 {[%emt 0:00:18]} 18. Bxg5 {[%emt 0:01:13]} hxg6 {[%emt 0:07:26]} 19. Qe4 {[%emt 0:03:24]} Na5 {[%emt 0:02:19]} 20. b3 {[%emt 0:00:06]} Qa3+ {[%emt 0:05:33]} 21. Kb1 {[%emt 0:00:07]} Nxc4 {[%emt 0:01:07]} 22. bxc4 {[%emt 0:01:28]} Qb4+ {[%emt 0:00:42]} 23. Kc2 {[%emt 0:01:28]} Qxc4+ {[%emt 0:00:08]} 24. Kd2 {[%emt 0:00:08]} Qxa2+ {[%emt 0:00:17]} 25. Ke3 {[%emt 0:00:49]} c5 {[%emt 0:00:20]} 26. Be7 {[%emt 0:03:29]} cxd4+ {[%emt 0:00:45]} 27. Rxd4 {[%emt 0:03:27]} Rfc8 {[%emt 0:00:40]} 28. Rhd1 {[%emt 0:01:20]} Rc3+ {[%emt 0:00:20]} 29. R1d3 {[%emt 0:00:09]} Rac8 {[%emt 0:00:20]} 30. Bb4 {[%emt 0:00:34]} Rxd3+ {[%emt 0:01:36]} 31. Qxd3 {[%emt 0:00:12]} a5 {[%emt 0:00:20]} 32. Rd8+ {[%emt 0:05:03]} Rxd8 {[%emt 0:00:06]} 33. Qxd8+ {[%emt 0:00:03]} Kh7 {[%emt 0:00:07]} 34. Bf8 {[%emt 0:00:21]} e5 {[%emt 0:02:22]} 35. Qxb6 {[%emt 0:00:32]} f5 {[%emt 0:01:32]} 36. Qb7 {[%emt 0:03:06]} Qg8 {[%emt 0:00:44]} 37. Bd6 {[%emt 0:01:53]} Qe6 {[%emt 0:01:15]} 38. Bb8 {[%emt 0:02:21]} f4+ {[%emt 0:00:58]} 39. Kf3 {[%emt 0:01:14]} Qc4 {[%emt 0:00:31]} 40. g3 {[%emt 0:00:00]} Qd3+ {[%emt 0:00:00]} 41. Kg2 {[%emt 0:01:57]} e4 {[%emt 0:01:00]} 42. Qe7 {[%emt 0:03:38]} Qf3+ {[%emt 0:24:43]} 43. Kh3 {[%emt 0:01:01]} fxg3 {[%emt 0:02:31]} 44. Qh4+ {[%emt 0:01:30]} Kg8 {[%emt 0:00:06]} 45. Qxg3 {[%emt 0:04:31]} Qh5+ {[%emt 0:01:40]} 46. Kg2 {[%emt 0:00:13]} a4 {[%emt 0:00:19]} 47. Be5 {[%emt 0:01:34]} 1-0

[Event "23rd Alekhine Master 2019"]
[Site "Voronezh"]
[Date "2019.06.12"]
[Round "1.5"]
[White "Ibadov, Dashgyn"]
[Black "Savchenko, Boris"]
[Result "0-1"]
[ECO "B81"]
[WhiteElo "2298"]
[BlackElo "2567"]
[Annotator "ChessBase"]
[PlyCount "60"]
[EventDate "2019.06.12"]
[EventType "swiss"]
[EventCountry "RUS"]
[SourceTitle "playchess.com"]
[Source "ChessBase"]
[SourceQuality "1"]
[TimeControl "40/5400+30:1800+30"]

1. e4 {[%emt 0:00:00]} c5 {[%emt 0:00:00]} 2. Nf3 {[%emt 0:00:00]} e6 {[%emt 0:00:00]} 3. d4 {[%emt 0:00:00]} cxd4 {[%emt 0:00:00]} 4. Nxd4 {[%emt 0:00:01]} Nf6 {[%emt 0:00:01]} 5. Nc3 {[%emt 0:00:05]} d6 {[%emt 0:00:08]} 6. g4 {[%emt 0:01:08]} h6 {[%emt 0:00:32]} 7. h3 {[%emt 0:00:45]} Be7 {[%emt 0:00:24]} 8. Bg2 {[%emt 0:01:38]} Nc6 {[%emt 0:00:10]} 9. Be3 {[%emt 0:00:49]} a6 {[%emt 0:00:26]} 10. Qe2 {[%emt 0:01:51]} Nxd4 {[%emt 0:07:50]} 11. Bxd4 {[%emt 0:00:04]} e5 {[%emt 0:00:05]} 12. Be3 {[%emt 0:00:14]} b5 {[%emt 0:00:06]} 13. O-O-O {[%emt 0:12:00]} b4 {[%emt 0:00:22]} 14. Nd5 {[%emt 0:00:42]} Nxd5 {[%emt 0:00:13]} 15. exd5 {[%emt 0:00:13]} a5 {[%emt 0:02:39]} 16. Kb1 {[%emt 0:01:23]} O-O {[%emt 0:01:52]} 17. Qd2 {[%emt 0:18:45]} f5 {[%emt 0:12:44]} 18. f4 {[%emt 0:13:37]} exf4 {[%emt 0:08:13]} 19. Bxf4 {[%emt 0:00:04]} fxg4 {[%emt 0:01:01]} 20. Be4 {[%emt 0:05:55]} g5 {[%emt 0:17:21]} 21. Be3 {[%emt 0:04:25]} gxh3 {[%emt 0:00:38]} 22. Qd3 {[%emt 0:07:45]} Bf6 {[%emt 0:00:41]} 23. Rde1 {[%emt 0:24:38]} Bg7 {[%emt 0:02:20]} 24. Bc1 {[%emt 0:00:35]} Ra7 {[%emt 0:01:49]} 25. Bh7+ {[%emt 0:00:46]} Kh8 {[%emt 0:00:07]} 26. Bg6 {[%emt 0:00:09]} a4 {[%emt 0:08:43]} 27. Rhf1 {[%emt 0:02:49]} Rxf1 {[%emt 0:00:51]} 28. Rxf1 {[%emt 0:00:34]} Ba6 {[%emt 0:00:29]} 29. Qxh3 {[%emt 0:00:33]} Bxf1 {[%emt 0:00:12]} 30. Qxf1 {[%emt 0:00:02]} Qf6 {[%emt 0:00:11]} 0-1

[Event "23rd Alekhine Master 2019"]
[Site "Voronezh"]
[Date "2019.06.12"]
[Round "1.7"]
[White "Krivenko, Sergey"]
[Black "Goganov, Aleksey"]
[Result "0-1"]
[ECO "E24"]
[WhiteElo "2297"]
[BlackElo "2559"]
[Annotator "ChessBase"]
[PlyCount "102"]
[EventDate "2019.06.12"]
[EventType "swiss"]
[EventCountry "RUS"]
[SourceTitle "playchess.com"]
[Source "ChessBase"]
[SourceQuality "1"]
[TimeControl "40/5400+30:1800+30"]

1. d4 {[%emt 0:00:00]} Nf6 {[%emt 0:00:00]} 2. c4 {[%emt 0:00:00]} e6 {[%emt 0:00:00]} 3. Nc3 {[%emt 0:00:00]} Bb4 {[%emt 0:00:00]} 4. a3 {[%emt 0:00:49]} Bxc3+ {[%emt 0:00:00]} 5. bxc3 {[%emt 0:00:01]} b6 {[%emt 0:00:17]} 6. f3 {[%emt 0:00:01]} Nc6 {[%emt 0:00:30]} 7. e4 {[%emt 0:00:10]} Ba6 {[%emt 0:00:40]} 8. Bg5 {[%emt 0:00:22]} h6 {[%emt 0:00:05]} 9. Bh4 {[%emt 0:00:01]} Na5 {[%emt 0:00:53]} 10. Qa4 {[%emt 0:01:09]} Qc8 {[%emt 0:10:01]} 11. Bxf6 {[%emt 0:08:33]} gxf6 {[%emt 0:00:06]} 12. Nh3 {[%emt 0:00:04]} Qb7 {[%emt 0:04:00]} 13. d5 {[%emt 0:02:06]} c6 {[%emt 0:02:23]} 14. dxe6 {[%emt 0:04:40]} dxe6 {[%emt 0:00:47]} 15. c5 {[%emt 0:05:31]} Bxf1 {[%emt 0:01:59]} 16. Rxf1 {[%emt 0:00:01]} Qc7 {[%emt 0:02:31]} 17. Qd4 {[%emt 0:05:59]} Qe5 {[%emt 0:03:34]} 18. Qxe5 {[%emt 0:05:51]} fxe5 {[%emt 0:00:11]} 19. cxb6 {[%emt 0:00:02]} axb6 {[%emt 0:00:07]} 20. Nf2 {[%emt 0:00:09]} Nc4 {[%emt 0:04:36]} 21. Ke2 {[%emt 0:01:18]} Ke7 {[%emt 0:00:16]} 22. Nd3 {[%emt 0:10:06]} Ra4 {[%emt 0:03:47]} 23. Nb4 {[%emt 0:07:47]} c5 {[%emt 0:01:03]} 24. Nc2 {[%emt 0:00:08]} Rg8 {[%emt 0:02:45]} 25. Rg1 {[%emt 0:06:39]} Rd8 {[%emt 0:02:08]} 26. Rgd1 {[%emt 0:01:04]} Rda8 {[%emt 0:01:19]} 27. Rdb1 {[%emt 0:03:00]} Kd7 {[%emt 0:01:42]} 28. Rb3 {[%emt 0:04:34]} Kc6 {[%emt 0:00:41]} 29. g4 {[%emt 0:02:42]} Rd8 {[%emt 0:02:15]} 30. Rd1 {[%emt 0:00:46]} Rxd1 {[%emt 0:00:41]} 31. Kxd1 {[%emt 0:00:02]} Ra8 {[%emt 0:01:23]} 32. Ke2 {[%emt 0:00:53]} Rd8 {[%emt 0:01:45]} 33. Ne3 {[%emt 0:00:36]} Nxe3 {[%emt 0:01:33]} 34. Kxe3 {[%emt 0:00:01]} c4 {[%emt 0:00:10]} 35. Rb4 {[%emt 0:03:07]} Rd3+ {[%emt 0:00:33]} 36. Kf2 {[%emt 0:02:31]} Rxc3 {[%emt 0:00:11]} 37. a4 {[%emt 0:00:00]} Kc5 {[%emt 0:01:40]} 38. Rb5+ {[%emt 0:00:11]} Kd4 {[%emt 0:00:07]} 39. Rxb6 {[%emt 0:05:32]} Rc2+ {[%emt 0:01:35]} 40. Kg3 {[%emt 0:00:00]} Ra2 {[%emt 0:00:00]} 41. Rb7 {[%emt 0:06:17]} c3 {[%emt 0:03:30]} 42. Rd7+ {[%emt 0:03:50]} Ke3 {[%emt 0:00:45]} 43. Rxf7 {[%emt 0:00:16]} Rxa4 {[%emt 0:00:21]} 44. Rc7 {[%emt 0:01:47]} Kd3 {[%emt 0:00:28]} 45. g5 {[%emt 0:04:19]} hxg5 {[%emt 0:00:08]} 46. Kg4 {[%emt 0:00:01]} Rc4 {[%emt 0:00:17]} 47. Rd7+ {[%emt 0:00:05]} Ke2 {[%emt 0:00:42]} 48. Ra7 {[%emt 0:00:22]} c2 {[%emt 0:00:00]} 49. Ra2 {[%emt 0:00:01]} Ke3 {[%emt 0:00:17]} 50. Ra3+ {[%emt 0:00:06]} Kd4 {[%emt 0:00:04]} 51. Ra2 Kd3 0-1

[Event "23rd Alekhine Master 2019"]
[Site "Voronezh"]
[Date "2019.06.12"]
[Round "1.9"]
[White "Tomilova, Elena"]
[Black "Meshkovs, Nikita"]
[Result "1/2-1/2"]
[ECO "A45"]
[WhiteElo "2289"]
[BlackElo "2550"]
[Annotator "ChessBase"]
[PlyCount "93"]
[EventDate "2019.06.12"]
[EventType "swiss"]
[EventCountry "RUS"]
[SourceTitle "playchess.com"]
[Source "ChessBase"]
[SourceQuality "1"]
[TimeControl "40/5400+30:1800+30"]

1. d4 {[%emt 0:00:00]} Nf6 {[%emt 0:00:32]} 2. Bg5 {[%emt 0:00:00]} d5 {[%emt 0:00:23]} 3. Bxf6 {[%emt 0:00:00]} gxf6 {[%emt 0:00:16]} 4. e3 {[%emt 0:00:00]} e6 {[%emt 0:01:40]} 5. Nf3 {[%emt 0:00:22]} c5 {[%emt 0:02:14]} 6. dxc5 {[%emt 0:00:31]} Bxc5 {[%emt 0:00:49]} 7. Be2 {[%emt 0:00:15]} Qb6 {[%emt 0:03:16]} 8. Qc1 {[%emt 0:03:11]} Nc6 {[%emt 0:00:26]} 9. O-O {[%emt 0:00:46]} Bd7 {[%emt 0:01:36]} 10. c4 {[%emt 0:01:28]} d4 {[%emt 0:02:37]} 11. exd4 {[%emt 0:02:22]} Nxd4 {[%emt 0:00:09]} 12. Nxd4 {[%emt 0:00:11]} Bxd4 {[%emt 0:00:05]} 13. Nc3 {[%emt 0:00:05]} Bc6 {[%emt 0:01:14]} 14. Nb5 {[%emt 0:07:50]} Rg8 {[%emt 0:10:45]} 15. g3 {[%emt 0:00:15]} O-O-O {[%emt 0:00:08]} 16. a4 {[%emt 0:11:46]} a5 {[%emt 0:11:43]} 17. Ra3 {[%emt 0:03:11]} Qc5 {[%emt 0:02:23]} 18. Bf3 {[%emt 0:06:11]} Be5 {[%emt 0:01:18]} 19. Qe3 {[%emt 0:07:33]} Qxe3 {[%emt 0:10:45]} 20. Rxe3 {[%emt 0:00:08]} Bxf3 {[%emt 0:09:27]} 21. Rxf3 {[%emt 0:00:04]} Rd2 {[%emt 0:00:06]} 22. b3 {[%emt 0:01:46]} Rgd8 {[%emt 0:04:04]} 23. Re1 {[%emt 0:00:55]} Rb2 {[%emt 0:05:29]} 24. Kg2 {[%emt 0:02:32]} Rdd2 {[%emt 0:02:30]} 25. Re4 {[%emt 0:03:03]} Rd8 {[%emt 0:06:20]} 26. Rh4 {[%emt 0:00:36]} Rh8 {[%emt 0:00:21]} 27. Re3 {[%emt 0:06:08]} Kd7 {[%emt 0:00:37]} 28. Kf1 {[%emt 0:10:24]} Ke7 {[%emt 0:00:47]} 29. f4 {[%emt 0:07:53]} Bd6 {[%emt 0:00:58]} 30. Nxd6 {[%emt 0:00:50]} Kxd6 {[%emt 0:00:07]} 31. f5 {[%emt 0:03:54]} e5 {[%emt 0:00:41]} 32. Rh6 {[%emt 0:00:18]} Ke7 {[%emt 0:00:25]} 33. Rd3 {[%emt 0:00:15]} Rg8 {[%emt 0:03:46]} 34. h3 {[%emt 0:03:19]} Rc8 {[%emt 0:09:57]} 35. g4 {[%emt 0:03:23]} b5 {[%emt 0:01:02]} 36. axb5 {[%emt 0:00:41]} a4 {[%emt 0:00:04]} 37. bxa4 {[%emt 0:03:45]} Rxc4 {[%emt 0:00:11]} 38. Rd1 {[%emt 0:00:21]} Rxa4 {[%emt 0:01:07]} 39. Rxh7 {[%emt 0:00:20]} Ra8 {[%emt 0:05:53]} 40. Rc1 {[%emt 0:00:00]} Raa2 {[%emt 0:00:00]} 41. Rh8 {[%emt 0:04:42]} Rxb5 {[%emt 0:03:48]} 42. Rd1 {[%emt 0:01:24]} Rbb2 {[%emt 0:06:53]} 43. Rhd8 {[%emt 0:00:20]} Rf2+ {[%emt 0:00:06]} 44. Kg1 {[%emt 0:00:03]} Rg2+ {[%emt 0:00:05]} 45. Kh1 {[%emt 0:00:15]} Rh2+ {[%emt 0:00:05]} 46. Kg1 {[%emt 0:00:03]} Rhg2+ {[%emt 0:00:07]} 47. Kh1 {[%emt 0:00:04]} 1/2-1/2

[Event "23rd Alekhine Master 2019"]
[Site "Voronezh"]
[Date "2019.06.12"]
[Round "1.10"]
[White "Iljiushenok, Ilia"]
[Black "Shoboev, Dandar"]
[Result "1/2-1/2"]
[ECO "A20"]
[WhiteElo "2549"]
[BlackElo "2288"]
[Annotator "ChessBase"]
[PlyCount "104"]
[EventDate "2019.06.12"]
[EventType "swiss"]
[EventCountry "RUS"]
[SourceTitle "playchess.com"]
[Source "ChessBase"]
[SourceQuality "1"]
[TimeControl "40/5400+30:1800+30"]

1. c4 {[%emt 0:00:00]} e5 {[%emt 0:00:00]} 2. g3 {[%emt 0:00:08]} Nc6 {[%emt 0:00:00]} 3. Bg2 {[%emt 0:00:07]} Bc5 {[%emt 0:00:00]} 4. e3 {[%emt 0:03:11]} a6 {[%emt 0:00:00]} 5. Ne2 {[%emt 0:00:28]} d6 {[%emt 0:00:06]} 6. Nbc3 {[%emt 0:02:35]} Nf6 {[%emt 0:00:07]} 7. O-O {[%emt 0:00:54]} O-O {[%emt 0:00:05]} 8. a3 {[%emt 0:11:36]} Ba7 {[%emt 0:00:21]} 9. Qc2 {[%emt 0:10:19]} Re8 {[%emt 0:04:18]} 10. b4 {[%emt 0:02:01]} Ne7 {[%emt 0:00:51]} 11. d4 {[%emt 0:08:05]} exd4 {[%emt 0:01:15]} 12. Nxd4 {[%emt 0:00:16]} c6 {[%emt 0:06:17]} 13. h3 {[%emt 0:03:26]} Bxd4 {[%emt 0:30:00]} 14. exd4 {[%emt 0:00:05]} d5 {[%emt 0:00:04]} 15. Bg5 {[%emt 0:22:51]} Bf5 {[%emt 0:02:32]} 16. Qb3 {[%emt 0:00:33]} dxc4 {[%emt 0:01:57]} 17. Qxc4 {[%emt 0:00:04]} Be6 {[%emt 0:00:41]} 18. Qd3 {[%emt 0:00:17]} Ned5 {[%emt 0:00:56]} 19. Na4 {[%emt 0:00:39]} h6 {[%emt 0:02:26]} 20. Bd2 {[%emt 0:03:26]} Nb6 {[%emt 0:01:47]} 21. Nb2 {[%emt 0:01:00]} Bd5 {[%emt 0:00:21]} 22. f3 {[%emt 0:00:31]} Qd7 {[%emt 0:02:15]} 23. Rac1 {[%emt 0:10:38]} Be6 {[%emt 0:05:24]} 24. g4 {[%emt 0:01:39]} Qd6 {[%emt 0:00:16]} 25. Nd1 {[%emt 0:03:51]} Rad8 {[%emt 0:00:49]} 26. Nf2 {[%emt 0:00:23]} Na4 {[%emt 0:05:03]} 27. Qc2 {[%emt 0:06:11]} Nb6 {[%emt 0:01:35]} 28. Rcd1 {[%emt 0:03:07]} Qg3 {[%emt 0:13:26]} 29. Bc1 {[%emt 0:02:50]} Bd5 {[%emt 0:02:11]} 30. Nh1 {[%emt 0:00:40]} Qc7 {[%emt 0:00:26]} 31. Qf2 {[%emt 0:00:35]} Na4 {[%emt 0:02:25]} 32. Rde1 {[%emt 0:01:39]} Qd6 {[%emt 0:02:23]} 33. Ng3 {[%emt 0:00:26]} Be6 {[%emt 0:01:04]} 34. Rd1 {[%emt 0:01:29]} Nc3 {[%emt 0:01:08]} 35. Rd2 {[%emt 0:00:01]} Bc4 {[%emt 0:02:45]} 36. Re1 {[%emt 0:00:01]} Rxe1+ {[%emt 0:00:21]} 37. Qxe1 {[%emt 0:00:01]} Re8 {[%emt 0:00:49]} 38. Qf2 {[%emt 0:00:01]} Nfd5 {[%emt 0:01:19]} 39. Ne4 {[%emt 0:01:29]} Qg6 {[%emt 0:00:22]} 40. Bb2 {[%emt 0:00:00]} Nxe4 {[%emt 0:00:00]} 41. fxe4 {[%emt 0:02:32]} Rxe4 {[%emt 0:01:01]} 42. Bxe4 {[%emt 0:05:00]} Qxe4 {[%emt 0:00:03]} 43. Rd1 {[%emt 0:01:03]} Nf4 {[%emt 0:01:51]} 44. Kh2 {[%emt 0:00:10]} Nd3 {[%emt 0:00:23]} 45. Qd2 {[%emt 0:00:58]} Qf3 {[%emt 0:06:39]} 46. Rg1 {[%emt 0:03:00]} Bd5 {[%emt 0:00:57]} 47. Bc1 {[%emt 0:01:22]} Nxc1 {[%emt 0:10:25]} 48. Rxc1 {[%emt 0:00:01]} Qxa3 {[%emt 0:00:09]} 49. Qc3 {[%emt 0:00:53]} Qa2+ {[%emt 0:00:15]} 50. Qc2 {[%emt 0:00:05]} Qa3 {[%emt 0:00:13]} 51. Qc3 {[%emt 0:00:34]} Qa2+ {[%emt 0:03:52]} 52. Qc2 {[%emt 0:00:10]} Qa3 {[%emt 0:00:07]} 1/2-1/2

[Event "23rd Alekhine Master 2019"]
[Site "Voronezh"]
[Date "2019.06.12"]
[Round "1.11"]
[White "Kovalenko, Sergey"]
[Black "Puranik, Abhimanyu"]
[Result "0-1"]
[ECO "A48"]
[WhiteElo "2269"]
[BlackElo "2548"]
[Annotator "ChessBase"]
[PlyCount "76"]
[EventDate "2019.06.12"]
[EventType "swiss"]
[EventCountry "RUS"]
[SourceTitle "playchess.com"]
[Source "ChessBase"]
[SourceQuality "1"]
[TimeControl "40/5400+30:1800+30"]

1. d4 {[%emt 0:00:00]} Nf6 {[%emt 0:00:00]} 2. Nf3 {[%emt 0:00:00]} g6 {[%emt 0:00:00]} 3. Bf4 {[%emt 0:00:00]} Bg7 {[%emt 0:00:01]} 4. h3 {[%emt 0:00:00]} d6 {[%emt 0:00:30]} 5. e3 {[%emt 0:00:01]} O-O {[%emt 0:00:25]} 6. Bc4 {[%emt 0:00:10]} Nc6 {[%emt 0:01:18]} 7. O-O {[%emt 0:00:19]} Nd7 {[%emt 0:00:23]} 8. Bg5 {[%emt 0:00:29]} Qe8 {[%emt 0:00:48]} 9. Nc3 {[%emt 0:00:34]} Nb6 {[%emt 0:02:21]} 10. Be2 {[%emt 0:00:30]} h6 {[%emt 0:05:46]} 11. Bh4 {[%emt 0:00:16]} Bd7 {[%emt 0:07:19]} 12. a4 {[%emt 0:02:09]} a5 {[%emt 0:04:13]} 13. Nb5 {[%emt 0:08:58]} Rc8 {[%emt 0:02:01]} 14. c4 {[%emt 0:02:41]} Nb4 {[%emt 0:03:33]} 15. Rc1 {[%emt 0:04:34]} c6 {[%emt 0:14:18]} 16. Nc3 {[%emt 0:00:31]} Be6 {[%emt 0:00:30]} 17. b3 {[%emt 0:00:42]} f5 {[%emt 0:01:06]} 18. Qd2 {[%emt 0:05:37]} g5 {[%emt 0:03:16]} 19. Bg3 {[%emt 0:00:39]} Nd7 {[%emt 0:01:59]} 20. e4 {[%emt 0:03:20]} f4 {[%emt 0:04:31]} 21. Bh2 {[%emt 0:00:05]} Qg6 {[%emt 0:02:03]} 22. Rfe1 {[%emt 0:02:41]} Rcd8 {[%emt 0:03:23]} 23. Bf1 {[%emt 0:09:49]} Kh8 {[%emt 0:06:13]} 24. Kh1 {[%emt 0:00:38]} Bg8 {[%emt 0:01:27]} 25. Rcd1 {[%emt 0:03:29]} e5 {[%emt 0:05:08]} 26. Na2 {[%emt 0:01:59]} Nxa2 {[%emt 0:00:40]} 27. Qxa2 {[%emt 0:00:01]} h5 {[%emt 0:01:26]} 28. dxe5 {[%emt 0:01:18]} Nxe5 {[%emt 0:04:17]} 29. Nxe5 {[%emt 0:00:43]} Bxe5 {[%emt 0:00:38]} 30. f3 {[%emt 0:03:19]} g4 {[%emt 0:02:28]} 31. fxg4 {[%emt 0:16:52]} hxg4 {[%emt 0:00:07]} 32. hxg4 {[%emt 0:00:35]} Be6 {[%emt 0:02:34]} 33. Qf2 {[%emt 0:01:48]} Kg7 {[%emt 0:01:46]} 34. Rd3 {[%emt 0:06:20]} Rh8 {[%emt 0:00:48]} 35. Kg1 {[%emt 0:00:09]} Bxg4 {[%emt 0:06:07]} 36. Bxf4 {[%emt 0:03:53]} Qh5 {[%emt 0:00:44]} 37. Bxe5+ {[%emt 0:02:54]} dxe5 {[%emt 0:00:05]} 38. Qg3 {[%emt 0:00:14]} Rxd3 {[%emt 0:00:28]} 0-1

[Event "23rd Alekhine Master 2019"]
[Site "Voronezh"]
[Date "2019.06.12"]
[Round "1.13"]
[White "Ter-Saakian, Grigorii"]
[Black "Maiorov, Nikita"]
[Result "0-1"]
[ECO "C84"]
[WhiteElo "2262"]
[BlackElo "2527"]
[Annotator "RC"]
[PlyCount "73"]
[EventDate "2019.06.12"]
[EventType "swiss"]
[EventCountry "RUS"]
[SourceTitle "playchess.com"]
[Source "ChessBase"]
[SourceQuality "1"]
[TimeControl "40/5400+30:1800+30"]

1. e4 {[%emt 0:03:23]} e5 {[%emt 0:00:32]} 2. Nf3 {[%emt 0:00:08]} Nc6 {[%emt 0:00:04]} 3. Bb5 {[%emt 0:00:11]} a6 {[%emt 0:00:06]} 4. Ba4 {[%emt 0:00:05]} Nf6 {[%emt 0:00:06]} 5. O-O {[%emt 0:00:41]} Be7 {[%emt 0:00:21]} 6. d3 {[%emt 0:00:56]} b5 {[%emt 0:00:45]} 7. Bb3 {[%emt 0:00:01]} O-O {[%emt 0:00:05]} 8. Nc3 {[%emt 0:00:11]} d6 {[%emt 0:00:04]} 9. a3 {[%emt 0:00:07]} Rb8 {[%emt 0:02:06]} 10. Nd5 {[%emt 0:04:59]} Nxd5 {[%emt 0:00:59]} 11. Bxd5 {[%emt 0:00:13]} Bd7 {[%emt 0:00:13]} 12. c3 {[%emt 0:04:41]} Bf6 {[%emt 0:00:41]} 13. h3 {[%emt 0:02:59]} Ne7 {[%emt 0:00:10]} 14. Ba2 {[%emt 0:00:02]} c5 {[%emt 0:01:59]} 15. Re1 {[%emt 0:04:44]} Qc7 {[%emt 0:00:31]} 16. d4 {[%emt 0:02:17]} Nc8 17. Be3 {[%emt 0:04:14]} Nb6 {[%emt 0:07:06]} 18. Qe2 Rbe8 19. dxc5 {[%emt 0:12:22]} dxc5 {[%emt 0:04:43]} 20. Rad1 {[%emt 0:00:12]} Bc8 {[%emt 0:00:21]} 21. Bd5 Nxd5 {[%emt 0:11:52]} 22. Rxd5 {[%emt 0:07:43]} Be7 {[%emt 0:00:29]} 23. b4 {[%emt 0:04:08]} cxb4 {[%emt 0:03:56]} 24. cxb4 {[%emt 0:02:26]} Qc3 {[%emt 0:07:54]} 25. Rd3 {[%emt 0:06:09]} Qc6 {[%emt 0:02:18]} 26. Rd5 {[%emt 0:02:26]} Be6 {[%emt 0:02:42]} 27. Rxe5 {[%emt 0:05:15]} Qc3 {[%emt 0:03:09]} 28. Bd4 {[%emt 0:07:54]} Qxa3 {[%emt 0:00:48]} 29. Ra1 {[%emt 0:01:49]} Qxb4 {[%emt 0:03:03]} 30. Rxa6 {[%emt 0:00:01]} Bc4 {[%emt 0:01:59]} 31. Qd2 {[%emt 0:02:49]} Qb1+ {[%emt 0:07:44]} 32. Kh2 {[%emt 0:04:52]} f6 {[%emt 0:00:32]} 33. Rxe7 {[%emt 0:09:22]} Rxe7 {[%emt 0:00:06]} 34. e5 {[%emt 0:00:08]} Qf5 {[%emt 0:09:30]} 35. Bc5 {[%emt 0:06:27]} Rd7 {[%emt 0:01:08]} 36. Qe3 {[%emt 0:00:17]} Rd3 {[%emt 0:02:56]} 37. Qe1 {[%emt 0:00:12]} 0-1

[Event "23rd Alekhine Master 2019"]
[Site "Voronezh"]
[Date "2019.06.12"]
[Round "1.14"]
[White "Shariyazdanov, Andrey"]
[Black "Khubukshanov, Erdem"]
[Result "1-0"]
[ECO "A13"]
[WhiteElo "2526"]
[BlackElo "2260"]
[Annotator "ChessBase"]
[PlyCount "85"]
[EventDate "2019.06.12"]
[EventType "swiss"]
[EventCountry "RUS"]
[SourceTitle "playchess.com"]
[Source "ChessBase"]
[SourceQuality "1"]
[TimeControl "40/5400+30:1800+30"]

1. c4 {[%emt 0:00:00]} e6 {[%emt 0:00:00]} 2. Nf3 {[%emt 0:01:46]} d5 {[%emt 0:00:40]} 3. e3 {[%emt 0:01:08]} Nf6 {[%emt 0:00:35]} 4. b3 {[%emt 0:00:12]} b6 {[%emt 0:00:26]} 5. cxd5 {[%emt 0:00:39]} exd5 {[%emt 0:00:12]} 6. Bb2 {[%emt 0:00:13]} Bb7 {[%emt 0:00:30]} 7. Be2 {[%emt 0:02:17]} Nbd7 {[%emt 0:00:44]} 8. Qc2 {[%emt 0:01:16]} Bd6 {[%emt 0:01:08]} 9. d3 {[%emt 0:03:54]} O-O {[%emt 0:02:55]} 10. Nbd2 {[%emt 0:00:41]} Re8 {[%emt 0:01:41]} 11. O-O {[%emt 0:01:23]} c5 {[%emt 0:01:50]} 12. Rfe1 {[%emt 0:00:29]} Qe7 {[%emt 0:01:39]} 13. Nf1 {[%emt 0:01:50]} h6 {[%emt 0:06:39]} 14. Rad1 {[%emt 0:07:20]} Rad8 {[%emt 0:03:15]} 15. Ng3 {[%emt 0:00:51]} Qe6 {[%emt 0:07:21]} 16. d4 {[%emt 0:14:11]} Rc8 {[%emt 0:06:36]} 17. dxc5 {[%emt 0:01:34]} bxc5 {[%emt 0:04:57]} 18. Bd3 {[%emt 0:01:02]} Bxg3 {[%emt 0:14:58]} 19. hxg3 {[%emt 0:00:30]} Ne4 {[%emt 0:06:26]} 20. Nd2 {[%emt 0:03:30]} f5 {[%emt 0:04:36]} 21. g4 {[%emt 0:09:09]} g6 {[%emt 0:15:30]} 22. gxf5 {[%emt 0:02:00]} gxf5 {[%emt 0:00:07]} 23. f3 {[%emt 0:06:37]} Nd6 {[%emt 0:01:23]} 24. Bf1 {[%emt 0:04:38]} Ne5 {[%emt 0:02:05]} 25. Kf2 {[%emt 0:04:58]} Kf7 {[%emt 0:03:45]} 26. Qc3 {[%emt 0:11:43]} Qf6 {[%emt 0:02:34]} 27. Be2 {[%emt 0:02:00]} Qh4+ {[%emt 0:08:14]} 28. Kg1 {[%emt 0:00:45]} Rg8 {[%emt 0:00:45]} 29. Bf1 {[%emt 0:00:26]} Rge8 {[%emt 0:01:12]} 30. Qa5 {[%emt 0:08:40]} Qg3 {[%emt 0:01:36]} 31. Bxe5 {[%emt 0:01:01]} Rxe5 {[%emt 0:00:18]} 32. Nc4 {[%emt 0:02:18]} Nxc4 {[%emt 0:00:43]} 33. bxc4 {[%emt 0:00:05]} f4 {[%emt 0:00:37]} 34. exf4 {[%emt 0:01:03]} Qxf4 {[%emt 0:00:24]} 35. cxd5 {[%emt 0:00:31]} Rxd5 {[%emt 0:00:32]} 36. Qxa7 {[%emt 0:02:04]} Rc7 {[%emt 0:00:19]} 37. Qb8 {[%emt 0:01:20]} Rxd1 {[%emt 0:00:34]} 38. Qe8+ {[%emt 0:00:55]} Kg7 {[%emt 0:00:11]} 39. Rxd1 {[%emt 0:00:12]} Bc6 {[%emt 0:00:52]} 40. Qe6 {[%emt 0:00:00]} Ba4 {[%emt 0:00:00]} 41. Rd8 {[%emt 0:03:32]} Rf7 {[%emt 0:09:06]} 42. Bc4 {[%emt 0:00:56]} Rf8 {[%emt 0:01:04]} 43. Qe7+ {[%emt 0:00:34]} 1-0